Cogmind - Beta 17 @@@ ROGUE MODE // 2026.07.16 @ 18:35:06 Player: Pitt Result: Destroyed by Y-45 Defender with Heavy Assault Rifle Performance ------------- Evolutions (2) 1000 Regions Visited (4) 800 Robots Destroyed (21) 105 Value Destroyed (428) 428 Prototype IDs (1) 20 Alien Tech Used (0) 0 Bonus (0) 0 TOTAL SCORE: 2353 Bonus ------- None Cogmind --------- Core Integrity 0/550 Matter 40/300 Energy 99/100 System Corruption 0% Temperature Cool (9) Movement Core (50) Location -8/Materials Parts ------- > --- POWER (1) -------- (None) > --- PROPULSION (4) --- (None) > --- UTILITY (4) ------ (None) > --- WEAPON (2) ------- (None) > --- INVENTORY (5) ---- Improved Heat Sink Medium Storage Unit Seismic Detector Hardened Medium Armor Plating Datajack Peak State ------------ > --- POWER ------------ Light Ion Engine > --- PROPULSION ------- VTOL Module VTOL Module VTOL Module Improved VTOL Module > --- UTILITY ---------- Improved Heat Sink Medium Storage Unit Improved Terrain Scanner Hacking Suite > --- WEAPON ----------- Mini Grenade Launcher > --- INVENTORY -------- Light Deuterium Engine Medium Storage Unit Structural Scanner Sensor Array Seismic Detector Medium Laser Medium Laser Datajack Mining Laser [Rating: 24] Favorites ----------- Power Light Ion Engine Engine Light Ion Engine Power Core Light Nuclear Core Propulsion VTOL Module Leg Aluminum Leg Wheel Wheel Flight Unit VTOL Module Utility Medium Storage Unit Device Improved Terrain Scanner Storage Medium Storage Unit Hackware Hacking Suite Protection Hardened Medium Armor Plating Weapon Medium Laser Energy Gun Medium Laser Ballistic Gun Assault Rifle Launcher Mini Grenade Launcher Special Weapon Mining Laser Special Melee Weapon Datajack Build | -11 -10 -9 -9 -8 ------- Run | Yrd Mat Mat Min Mat Slots Evolved 4 | . . 2 . 2 Power . | . . . . . Propulsion 2 | . . 2 . . Utility 2 | . . . . 2 Weapon . | . . . . . Parts Attached 36 | 9 11 7 . 9 Power 5 | 1 1 1 . 2 Engine 4 | 1 1 1 . 1 Core 1 | . . . . 1 Reactor . | . . . . . Propulsion 13 | 4 4 3 . 2 Treads . | . . . . . Leg 2 | . 2 . . . Wheel 5 | 4 1 . . . Hover . | . . . . . Flight 6 | . 1 3 . 2 Utility 11 | 2 3 3 . 3 Device 5 | 2 1 2 . . Storage 2 | . 2 . . . Processor . | . . . . . Hackware 2 | . . . . 2 Protection 2 | . . 1 . 1 Artifact . | . . . . . Weapon 7 | 2 3 . . 2 Energy Gun 3 | 1 2 . . . Energy Cannon . | . . . . . Ballistic Gun 1 | 1 . . . . Ballistic Cannon . | . . . . . Launcher 1 | . . . . 1 Special Weapon 1 | . 1 . . . Impact Weapon . | . . . . . Slashing Weapon . | . . . . . Piercing Weapon . | . . . . . Special Melee Weapon 1 | . . . . 1 Unidentified Prototypes 1 | . . . . 1 Parts Lost 16 | . 1 1 . 14 Power 2 | . . . . 2 Propulsion 7 | . 1 1 . 5 Utility 3 | . . . . 3 Weapon 4 | . . . . 4 Highest Loss Streak 14 | . 1 1 . 14 To Critical Strikes . | . . . . . Average Backups 8 | 3 7 9 10 8 Power . | . . . 1 . Propulsion . | . . . . . Utility 4 | . 3 5 6 4 Weapon 2 | 1 2 2 2 2 Tool/Special . | . . . . . Unused Backups 5 | . 3 1 . 1 Power . | . . . . . Propulsion . | . . . . . Utility 3 | . 2 . . 1 Weapon 2 | . 1 1 . . Tool/Special . | . . . . . Average Slot Usage (%) 92 | . 99 87 88 87 Engine 11 | . 13 11 11 8 Wheel 10 | . 25 . . . Flight 23 | . . 43 33 34 Device 14 | . 15 10 11 16 Storage 10 | . 12 11 11 9 Hackware 2 | . . . . 8 Energy Gun 10 | . 13 11 22 1 Ballistic Gun 5 | . 13 . . . Launcher 1 | . . . . 4 Special Weapon 1 | . 1 . . 4 Peak Build Rating 24 | 9 10 17 14 24 Average Rating 13 | 7 8 14 14 21 On Entrance 9 | . 9 9 14 14 Avg Prop Armor Cover (%) 4 | . 4 . . . Naked Turns . | . . . . . Heaviest Build 27 | 11 20 18 18 27 Greatest Support 32 | 32 20 16 12 17 Greatest Overweight (x) 3 | 1 1 1 1 3 Average Overweight (x) . | . . . 1 . Largest Inventory Capacity 10 | 5 10 10 10 10 Average Capacity 9 | 5 9 10 10 10 Most Carried 10 | 5 10 10 10 10 Average Carried 8 | 3 8 9 10 8 Final Capacity 10 | 5 10 10 10 5 Final Carried 10 | 5 10 10 10 5 Class Distribution -------------------- 41% | Sprinter 34% | Mutant 13% | Scavenger-Mutant 10% | Scavenger-Sprinter Dominant Class ---------------- Mutant | -10/Materials Sprinter | -9/Materials Mutant | -9/Mines Sprinter | -8/Materials Resources | -11 -10 -9 -9 -8 ----------- Run | Yrd Mat Mat Min Mat Matter Collected 765 | 345 149 261 10 . Remotely . | . . . . . Salvage Created 668 | 192 189 225 28 34 Parts 56 | 17 19 17 1 2 Haulers Intercepted . | . . . . . Recyclers Shooed 2 | . 2 . . . Parts Field Recycled . | . . . . . Retrieved Matter . | . . . . . Parts Self-Destructed . | . . . . . Prevented . | . . . . . Parts Restored . | . . . . . Kills | -11 -10 -9 -9 -8 ------- Run | Yrd Mat Mat Min Mat Combat Hostiles Destroyed 10 | . 5 4 . 1 Guns 9 | . 5 4 . . AOE 1 | . . . . 1 Classes Destroyed 9 | 2 4 3 . . Builder 1 | . 1 . . . Tunneler 7 | 6 . . 1 . Recycler 1 | 1 . . . . Operator 1 | . . 1 . . Watcher 1 | . 1 . . . Swarmer 3 | . 3 . . . Grunt 3 | . 2 1 . . Brawler 1 | . . 1 . . Sentry 3 | . . 2 . 1 Best Kill Streak 3 | 3 3 2 1 1 Combat Bots Only 3 | . 3 2 . 1 Max Kills in Single Turn 2 | 2 1 1 1 1 Gunslinging . | . . . . . Exploded 1 | . . . . 1 Melee . | . . . . . Uniques/NPCs Destroyed . | . . . . . Combat | -11 -10 -9 -9 -8 -------- Run | Yrd Mat Mat Min Mat Hostile Shots Fired 138 | . 29 14 1 94 Missed 36 | . 4 4 1 27 Hits 102 | . 25 10 . 67 Melee 13 | . . 2 . 11 Projectile 89 | . 25 8 . 56 Critical Strikes 6 | . 1 1 . 4 Damage Taken 1710 | . 248 141 . 1321 Core 660 | . 63 32 . 565 Absorbed by Shields . | . . . . . Regen/Repaired (Parts) 45 | . . . . 45 Core Remaining (%) 88 | 100 74 . 92 . Volleys Fired 100 | 15 42 18 6 19 Largest 2 | 2 2 1 2 2 Hottest 150 | 70 150 50 100 100 Shots Fired 155 | 30 74 18 12 21 Gun 131 | 30 62 18 12 9 Cannon . | . . . . . Launcher 7 | . . . . 7 Special 17 | . 12 . . 5 Kinetic 45 | 15 30 . . . Thermal 103 | 15 44 18 12 14 Explosive 7 | . . . . 7 Electromagnetic . | . . . . . Robot Hit Streak 9 | 4 5 9 3 7 Robot Miss Streak 3 | 2 3 2 1 2 Penetration Max . | . . . . . Secondary Targets . | . . . . . Shots Hit Robots 82 | 16 36 14 7 9 Core Hits 40 | 8 11 10 1 10 Critical Kills 1 | . 1 . . . Critical Parts Destroyed . | . . . . . Critical Strikes 6 | 1 2 . 2 1 Burn 5 | 1 1 . 2 1 Destroy 1 | . 1 . . . Melee Attacks 1 | . . . . 1 Impact . | . . . . . Slashing . | . . . . . Piercing . | . . . . . Sneak Attacks 1 | . . . . 1 Combat Hostiles . | . . . . . Follow-up Attacks . | . . . . . Damage Inflicted 1215 | 228 451 175 88 273 Guns 1030 | 228 451 175 88 88 Cannons . | . . . . . Explosions 185 | . . . . 185 Melee . | . . . . . Ramming . | . . . . . Kinetic 389 | 138 251 . . . Thermal 641 | 90 200 175 88 88 Explosive 185 | . . . . 185 Electromagnetic . | . . . . . Impact . | . . . . . Slashing . | . . . . . Piercing . | . . . . . Highest Corruption . | . . . . . Average Corruption . | . . . . . Corruption Purged . | . . . . . Corruption Blocked . | . . . . . Overload Shots . | . . . . . Overflow Damage 9 | . . . . 9 Projectiles . | . . . . . Explosions 9 | . . . . 9 Melee . | . . . . . Knockbacks . | . . . . . Impact . | . . . . . Kinetic . | . . . . . Secondary . | . . . . . Self-Inflicted Damage 118 | . . . . 118 Shots 3 | . . . . 3 Rammed . | . . . . . Targets Rammed . | . . . . . Kicked . | . . . . . Crushed . | . . . . . Highest Temperature 186 | 36 186 162 . 121 Average Temperature 44 | 17 48 68 . 48 Received Heat Transfer 501 | . 87 45 . 369 Siege Activations . | . . . . . Martial Activations . | . . . . . Shielding Activations . | . . . . . Robots Disrupted . | . . . . . Combat Hostiles . | . . . . . Robots Corrupted . | . . . . . Combat Hostiles . | . . . . . Parts Fried . | . . . . . Impact Corruptions . | . . . . . Robots Melted . | . . . . . Combat Hostiles . | . . . . . Parts Melted 3 | 1 1 . 1 . Heat Transferred 2257 | 333 666 518 407 333 Parts Sabotaged . | . . . . . Parts Stolen . | . . . . . Parts Stripped . | . . . . . Power Chain Reactions . | . . . . . Alert | -11 -10 -9 -9 -8 ------- Run | Yrd Mat Mat Min Mat Maximum Alert Level . | . . . . . Low Security (%) 100 | 100 100 100 100 100 Level 1 . | . . . . . Level 2 . | . . . . . Level 3 . | . . . . . Level 4 . | . . . . . Level 5 . | . . . . . High Security . | . . . . . Max Security . | . . . . . Peak Influence 96 | 10 96 70 19 34 Initial 35 | . . 35 19 . Average 7 | . 11 7 5 1 Influence Increases 475 | 35 171 130 5 134 Destroy 0b10 Robot/C 200 | . 100 80 . 20 Destroy 0b10 Robot/NC 55 | 35 10 5 5 . Destroy Leader 62 | . 22 30 . 10 Successful Hack 38 | . 26 . . 12 Disable Machine 30 | . . . . 30 Destroy Structure 45 | . 13 . . 32 Partial Spotted 45 | . . 15 . 30 Influence Decreases 463 | 35 85 166 55 122 Entered New Map 82 | . . 51 31 . Time Decay 299 | 35 75 95 24 70 Lost Part 72 | . 10 10 . 52 Lost Ally 10 | . . 10 . . Squads Dispatched 1 | . . 1 . . Investigation . | . . . . . Extermination . | . . . . . Reinforcement 1 | . . 1 . . Assault . | . . . . . Garrison . | . . . . . Intercept . | . . . . . Searches Triggered . | . . . . . Construction Impeded . | . . . . . Haulers Reinforced . | . . . . . Active Scanning Responses . | . . . . . Cargo Convoy Interrupts . | . . . . . Stealth | -11 -10 -9 -9 -8 --------- Run | Yrd Mat Mat Min Mat Distress Signals 2 | . . 2 . . Communications Jammed . | . . . . . Distress Signals . | . . . . . Times Spotted 31 | . 11 7 7 6 Peak Tracking Total 17 | . 4 5 17 6 Tactical Retreats . | . . . . . Traps | -11 -10 -9 -9 -8 ------- Run | Yrd Mat Mat Min Mat Traps Triggered . | . . . . . Indirectly . | . . . . . Trap Hack Attempts . | . . . . . Triggered . | . . . . . Disarmed . | . . . . . Reprogrammed . | . . . . . Reused . | . . . . . Traps Extracted . | . . . . . Installed . | . . . . . Triggered . | . . . . . Machines | -11 -10 -9 -9 -8 ---------- Run | Yrd Mat Mat Min Mat Machines Disabled 2 | . . . . 2 Max in Single Turn 1 | . . . . 1 Machines Repaired . | . . . . . Machines Dismantled . | . . . . . Machines Sabotaged . | . . . . . Overloaded Fab Kills . | . . . . . Hacking | -11 -10 -9 -9 -8 --------- Run | Yrd Mat Mat Min Mat Machines Accessed 11 | . 6 . . 5 Terminals 10 | . 6 . . 4 Fabricators . | . . . . . Repair Stations 1 | . . . . 1 Recycling Units . | . . . . . Scanalyzers . | . . . . . Garrison Access . | . . . . . Total Hacks 25 | . 14 . . 11 Successful 11 | . 5 . . 6 Failed 14 | . 9 . . 5 Catastrophic 2 | . . . . 2 Database Lockouts . | . . . . . Manual 18 | . 11 . . 7 Terminals 21 | . 14 . . 7 Fabricators . | . . . . . Repair Stations 4 | . . . . 4 Recycling Units . | . . . . . Scanalyzers . | . . . . . Garrison Access . | . . . . . Terminal Hacks 5 | . 3 . . 2 Part Schematic 1 | . . . . 1 Terminal Index 2 | . 1 . . 1 Hauler Manifests 1 | . 1 . . . Zone Layout 1 | . 1 . . . Fabricator Hacks . | . . . . . Repair Station Hacks 4 | . . . . 4 Scan Component 2 | . . . . 2 Repair 2 | . . . . 2 Recycling Unit Hacks . | . . . . . Scanalyzer . | . . . . . Garrison Access Hacks . | . . . . . Unauthorized Hacks 2 | . 2 . . . Terminals 2 | . 2 . . . Assimilate 1 | . 1 . . . Operators 1 | . 1 . . . Fabricators . | . . . . . Repair Stations . | . . . . . Recycling Units . | . . . . . Scanalyzers . | . . . . . Garrison Access . | . . . . . Data Cores Recovered . | . . . . . Used . | . . . . . Hacking Detections 10 | . 5 . . 5 Full Trace Events . | . . . . . Feedback Events . | . . . . . Feedback Blocked . | . . . . . Robot Schematics Acquired . | . . . . . Robots Built . | . . . . . Authchips . | . . . . . Time . | . . . . . Total Robot Build Rating . | . . . . . Part Schematics Acquired 1 | . . . . 1 Parts Built . | . . . . . Authchips . | . . . . . Time . | . . . . . Total Part Build Rating . | . . . . . Part Studies Acquired . | . . . . . Parts Repaired 2 | . . . . 2 Time 58 | . . . . 58 Parts Recycled . | . . . . . Recycled Matter . | . . . . . Retrieved Matter . | . . . . . Retrieved Components . | . . . . . Parts Scanalyzed . | . . . . . Part Schematics Acquired . | . . . . . Parts Damaged . | . . . . . Bothacking | -11 -10 -9 -9 -8 ------------ Run | Yrd Mat Mat Min Mat Used RIF Installer . | . . . . . Robots Hacked 1 | . . . . 1 Non-combat 1 | . . . . 1 Combat . | . . . . . Robot Hacks Applied 1 | . . . . 1 no_distress 1 | . . . . 1 Relay Couplers Released . | . . . . . Fabnet Peak Effective % . | . . . . . Robots Rewired . | . . . . . Allies Hacked . | . . . . . Hacks Repelled . | . . . . . Allies | -11 -10 -9 -9 -8 -------- Run | Yrd Mat Mat Min Mat Total Allies 1 | . 1 . . . Largest Group 1 | . 1 1 . . Highest-Rated Group 10 | . 10 10 . . Highest-Rated Ally 10 | . 10 10 . . Total Orders . | . . . . . Ally Attacks . | . . . . . Total Damage . | . . . . . Kills . | . . . . . Allies Corrupted . | . . . . . Allies Melted . | . . . . . Intel | -11 -10 -9 -9 -8 ------- Run | Yrd Mat Mat Min Mat Active Infowar (turns) 5539 | 248 2253 1776 . 1262 Sensors 526 | . . 59 . 467 Terrain 4899 | 248 1962 1684 . 1005 Structural 258 | . 161 33 . 64 Seismic 687 | 88 417 . . 182 Robot Analysis Total . | . . . . . Derelict Logs Recovered . | . . . . . Drone Launches . | . . . . . Drone Recoveries . | . . . . . Exploration | -11 -10 -9 -9 -8 ------------- Run | Yrd Mat Mat Min Mat Turns Passed 6009 | 330 2253 1940 95 1391 Spaces Moved 1458 | 205 520 299 68 366 Core 21 | 19 . . . 2 Treads . | . . . . . Legs 121 | . 121 . . . Wheels 585 | 186 399 . . . Hover . | . . . . . Flight 731 | . . 299 68 364 Fastest Speed 26 | 50 80 26 109 26 Average Speed 70 | 87 91 50 109 43 Slowest Speed 200 | 100 190 109 109 200 Overloaded Moves . | . . . . . Propulsion Burnouts . | . . . . . Robots Hopped 8 | . . 4 . 4 Potential Cave-ins 3 | . . . . 3 Cave-ins Triggered . | . . . . . Exploration Rate (%) 25 | 5 52 25 21 23 Regions Visited 4 Branch Regions 1 Pre-discovered Areas . | . . . . . Known Exits Taken . | . . . . . Unknown Exits Taken 4 | 1 1 1 1 . Scrap Searched . | . . . . . Spaces Dug 16 | . 11 . . 5 Terrain Destroyed 66 | . 12 . . 54 Melee . | . . . . . Projectile 17 | . 12 . . 5 AOE 49 | . . . . 49 Terrain Rammed . | . . . . . Walls Destroyed . | . . . . . Machines Disabled . | . . . . . Actions | -11 -10 -9 -9 -8 --------- Run | Yrd Mat Mat Min Mat Total 6220 | 322 2198 2066 76 1558 Wait 4552 | 84 1595 1727 3 1143 Move 1439 | 204 519 291 67 358 Hop 7 | . . 3 . 4 Pick Up 24 | 6 11 5 . 2 Fast Attach 21 | 9 4 2 . 6 Attach 14 | 1 1 4 . 8 Detach 6 | . 1 3 . 2 Swap 35 | . 15 8 . 12 Drop 21 | 3 10 5 . 3 Fire 100 | 15 42 18 6 19 Melee 1 | . . . . 1 Ram . | . . . . . Kick . | . . . . . Crush . | . . . . . Escape Stasis . | . . . . . Rewire . | . . . . . Trap . | . . . . . Miscellaneous . | . . . . . Route ------- -11/Scrapyard -10/Materials (discovered 2 exits: [*Mat x2]) -9/Materials -9/Mines -8/Materials History --------- Turn | Location | Event 8 | -11/Scrapyard | Discovered new exit (range 16) 331 | -11/Scrapyard | Entered Materials 332 | -10/Materials | Build established: Scavenger-Mutant 921 | -10/Materials | Build established: Mutant 1212 | -10/Materials | Discovered new exit (range 14) 2338 | -10/Materials | Discovered new exit (range 5) 2584 | -10/Materials | Entered another Materials area 2584 | -9/Materials | Accompanied by 1 ally 2584 | -9/Materials | Evolved 2 slots: Propulsion x2 2857 | -9/Materials | Build established: Sprinter 4518 | -9/Materials | Discovered new exit (range 7) 4524 | -9/Materials | Entered Mines 4592 | -9/Mines | Discovered new exit (range 5) 4593 | -9/Mines | Assembled infested the area 4619 | -9/Mines | Entered Materials 4619 | -8/Materials | Evolved 2 slots: Utility x2 4664 | -8/Materials | Repaired VTOL Module 4691 | -8/Materials | Repaired Lgt. Ion Engine 4994 | -8/Materials | Build established: Scavenger-Sprinter 5605 | -8/Materials | Build established: Sprinter 6001 | -8/Materials | Core integrity fell below 50% 6007 | -8/Materials | Core integrity fell below 20% 6010 | -8/Materials | Released all parts (2) 6010 | -8/Materials | Destroyed by Y-45 Defender with Heavy Assault Rifle Last Messages --------------- 05975_ Critical hit (Burn: +37). 05975_ Acquired Hrd. Medium Armor Plating. 05994_ Med. Laser destroyed. 05996_ Hrd. Medium Armor Plating severed. 05999_ Med. Laser destroyed. 06000_ Processing Tank disabled. 06002_ Critical hit (Burn: +37). 06002_ Lgt. Deuterium Engine destroyed. 06002_ Destroyed Lgt. Deuterium Engine. 06002_ Cesium-ion Thruster destroyed. 06002_ Destroyed Cesium-ion Thruster. 06002_ Y-45 Defender destroyed. 06002_ Mni. Grenade Launcher destroyed. 06006_ Acquired Hrd. Medium Armor Plating. 06007_ U-05 Engineer lays Concrete. 06007_ Imp. VTOL Module destroyed. 06009_ U-05 Engineer lays Concrete. 06010_ Released Med. Storage Unit. 06010_ Released System Shield. [Achievement: Live, Flee, And Rebuild] Map ----- +----------------------------------------------------+ | | | | | | | | | | | | | | | | | | | | | | | | | | | | | | | | | | | | | | | | | | | ????????????????????## ########?############ | | ????????????????????# # """ # | | ????????????????????# l Y # "R" # | | ????????????????????# !=%! # " " # | | ????????????????????# @ Y # # """"" ! | | ????????????????????# gg u # """ """ # """"" | | ????????????????????#! # """ """ #! """"" | | ????????????????????# =# """ """ # | | ????????????????????# # ######+### | | ????????????????????#########t########"#### | | ???????????????# | | ???????????????# ^ | | ??????????????? """ """ ^ | | ????????????????????""" """ ! | | ????????????????????""" """ | | ???????????????????? ############# ! | | ???????????????????? #???????????### ## | | ??????????????????? ??? """ #??????? ?????# #? | | ??????????????????????" """ ???????"????### ## | | ??????????????????????" """ ? ??????????#?# #? | | ?????????????????????? ??? ? ??????????### ## | | ?????????????????????????? ? ???????????## ## | | ??????????????????????????"" ??????######### ## | | ???????????????????????????" ??????# # # | | ???????????????????????????" ??????#"" # # | | ???????????????????????????? ???????#"T =! / | | ????????????????????????????????#???#"" ! # # | | ??????????????????????????????????### # # | | ??????????????????????????????????# " ### ### | +----------------------------------------------------+ Best States ------------- Heat Dissipation 45 Energy Generation 14 Energy Capacity 250 Matter Stores 300 Matter Capacity 300 Sight Range 16 Robot Scan Range 14 Terrain Scan Range 16 Terrain Scan Density 10 Armor Coverage 225 Evasion (%) 64 Offensive Hacking 10 Defensive Hacking 10 Item Schematics ----------------- VTOL Module | -8/Materials | Hacked Robot Schematics ------------------ None Fabricated ------------ Nothing Repaired ---------- VTOL Module | 36% | -8/Materials Lgt. Ion Engine | 27% | -8/Materials Studied --------- None Alien Tech Used ----------------- None Achievements -------------- Live, Flee, And Rebuild Challenges ------------ None Game ------ Seed SuspensionGravityChaingun Manual? 0 Play Time 00:31:02 Cumulative 269.5 hours Start 2026.07.16 @ 18:03:49 End 2026.07.16 @ 18:35:06 Sessions 1 Manual Loads 0 Difficulty Rogue Special Mode None Game No. 418 Rogue 418 Adventurer 0 Explorer 0 Win Type - Total 0 Types 0/0/0/0/0/0/0/0/0/0 Lore% 51 Gallery% 50 Achievement% 31 Wizard Run 0 Options --------- Layout 0 ASCII 0 Keyboard 1 Movement Numpad Keybinds 0 Fullscreen 1 Font 18/SmallcapsGlow Map View 76x50 Zoom Use 0% Tactical HUD 1 Map Filters NONE Filters NONE Steam 1 RUN: 64407de9-37fa-4d48-ab99-ffe72924d10d